[Event "32nd GER-ch Seniors-65 2020"]
[Site "Magdeburg"]
[Date "2020.08.15"]
[Round "2.12"]
[White "Seidel, Arnold"]
[Black "Kannenberg, Karl-Heinz"]
[Result "0-1"]
[ECO "D00"]
[WhiteElo "1985"]
[BlackElo "2128"]
[Annotator "ChessBase"]
[PlyCount "30"]
[EventDate "2020.08.14"]
[EventType "swiss"]
[EventCountry "GER"]
[SourceTitle "playchess.com"]
[Source "ChessBase"]
[SourceQuality "1"]
[TimeControl "40/5400+30:1800+30"]

1. d4 {[%emt 0:00:00]} d5 {[%emt 0:00:00]} 2. e3 {[%emt 0:00:00]} Nf6 {[%emt 0:01:43]} 3. c4 {[%emt 0:00:13]} c6 {[%emt 0:00:17]} 4. Nc3 {[%emt 0:00:26]} a6 {[%emt 0:00:28]} 5. Nf3 {[%emt 0:01:04]} b5 {[%emt 0:01:32]} 6. c5 {[%emt 0:00:36]} Bg4 {[%emt 0:01:18]} 7. h3 {[%emt 0:01:14]} Bxf3 {[%emt 0:00:54]} 8. Qxf3 {[%emt 0:00:03]} Nbd7 {[%emt 0:01:03]} 9. Bd2 {[%emt 0:00:47]} e5 {[%emt 0:00:57]} 10. Qg3 {[%emt 0:00:50]} b4 {[%emt 0:04:56]} 11. Na4 {[%emt 0:03:16]} Ne4 {[%emt 0:00:12]} 12. Qf3 {[%emt 0:04:05]} Nxd2 {[%emt 0:00:48]} 13. Kxd2 Be7 14. b3 {[%emt 0:03:59]} Bf6 {[%emt 0:01:12]} 15. Kd3 {[%emt 0:01:22]} e4+ {[%emt 0:00:09]} 0-1

[Event "32nd GER-ch Seniors-65 2020"]
[Site "Magdeburg"]
[Date "2020.08.16"]
[Round "3.1"]
[White "Khanukov, Boris"]
[Black "Zunker, Reinhard"]
[Result "1-0"]
[ECO "E91"]
[WhiteElo "2291"]
[BlackElo "2067"]
[Annotator "ChessBase"]
[PlyCount "65"]
[EventDate "2020.08.14"]
[EventType "swiss"]
[EventCountry "GER"]
[SourceTitle "playchess.com"]
[Source "ChessBase"]
[SourceQuality "1"]
[TimeControl "40/5400+30:1800+30"]

1. d4 {[%emt 0:00:00]} Nf6 {[%emt 0:00:00]} 2. Nf3 {[%emt 0:00:17]} d6 {[%emt 0:00:28]} 3. c4 {[%emt 0:00:21]} g6 {[%emt 0:01:20]} 4. Nc3 {[%emt 0:00:18]} Bg7 {[%emt 0:01:07]} 5. e4 {[%emt 0:00:22]} O-O {[%emt 0:01:10]} 6. Be2 {[%emt 0:00:27]} c5 {[%emt 0:04:25]} 7. d5 {[%emt 0:05:27]} e5 {[%emt 0:12:12]} 8. O-O {[%emt 0:02:42]} Na6 {[%emt 0:01:12]} 9. Ne1 {[%emt 0:02:47]} Nc7 {[%emt 0:03:15]} 10. a3 {[%emt 0:01:00]} a6 {[%emt 0:00:25]} 11. b4 {[%emt 0:01:13]} b6 {[%emt 0:06:33]} 12. Rb1 {[%emt 0:00:22]} cxb4 {[%emt 0:04:19]} 13. axb4 {[%emt 0:00:13]} a5 {[%emt 0:00:41]} 14. bxa5 {[%emt 0:06:30]} bxa5 {[%emt 0:00:58]} 15. Ba3 {[%emt 0:01:19]} Na6 {[%emt 0:00:53]} 16. Nd3 {[%emt 0:01:43]} Ne8 {[%emt 0:08:02]} 17. c5 {[%emt 0:05:18]} dxc5 {[%emt 0:04:06]} 18. Nxc5 {[%emt 0:03:03]} Nd6 {[%emt 0:01:45]} 19. Nxa6 {[%emt 0:12:04]} Bxa6 {[%emt 0:01:54]} 20. Bxa6 {[%emt 0:01:08]} Rxa6 {[%emt 0:00:12]} 21. Qd3 {[%emt 0:07:11]} Qa8 {[%emt 0:02:13]} 22. Nb5 {[%emt 0:00:22]} Nxb5 {[%emt 0:00:19]} 23. Bxf8 Bxf8 {[%emt 0:00:12]} 24. Rxb5 {[%emt 0:01:00]} a4 {[%emt 0:16:31]} 25. Ra1 {[%emt 0:10:12]} a3 {[%emt 0:00:39]} 26. Ra2 {[%emt 0:02:21]} Ra4 {[%emt 0:03:16]} 27. h4 {[%emt 0:06:21]} Qa6 {[%emt 0:02:12]} 28. Rb3 {[%emt 0:00:53]} Qxd3 {[%emt 0:06:37]} 29. Rxd3 {[%emt 0:00:08]} Rxe4 {[%emt 0:00:11]} 30. d6 {[%emt 0:00:24]} Rd4 {[%emt 0:00:09]} 31. Rxd4 {[%emt 0:00:28]} exd4 {[%emt 0:00:02]} 32. d7 {[%emt 0:00:14]} Be7 {[%emt 0:00:14]} 33. Rxa3 {[%emt 0:00:12]} 1-0

[Event "32nd GER-ch Seniors-65 2020"]
[Site "Magdeburg"]
[Date "2020.08.16"]
[Round "3.2"]
[White "Bogorad, Michail"]
[Black "Buchal, Stephan"]
[Result "1-0"]
[ECO "B07"]
[WhiteElo "2064"]
[BlackElo "2280"]
[Annotator "ChessBase"]
[PlyCount "66"]
[EventDate "2020.08.14"]
[EventType "swiss"]
[EventCountry "GER"]
[SourceTitle "playchess.com"]
[Source "ChessBase"]
[SourceQuality "1"]
[TimeControl "40/5400+30:1800+30"]

1. e4 {[%emt 0:00:00]} d6 {[%emt 0:00:00]} 2. d4 {[%emt 0:00:00]} Nf6 {[%emt 0:00:14]} 3. Nc3 {[%emt 0:00:40]} g6 {[%emt 0:00:14]} 4. Be2 {[%emt 0:02:53]} Bg7 {[%emt 0:00:57]} 5. Be3 {[%emt 0:00:24]} O-O {[%emt 0:05:50]} 6. g4 {[%emt 0:06:04]} c5 {[%emt 0:05:48]} 7. g5 {[%emt 0:22:21]} Ng4 {[%emt 0:06:05]} 8. Bxg4 {[%emt 0:05:16]} Bxg4 {[%emt 0:01:50]} 9. f3 {[%emt 0:03:05]} cxd4 {[%emt 0:10:54]} 10. Bxd4 {[%emt 0:00:09]} e5 {[%emt 0:07:37]} 11. Be3 {[%emt 0:00:50]} Be6 {[%emt 0:00:12]} 12. h4 {[%emt 0:01:50]} Nc6 {[%emt 0:07:11]} 13. h5 {[%emt 0:03:18]} Nd4 {[%emt 0:05:01]} 14. Qd2 {[%emt 0:04:44]} Qb6 {[%emt 0:09:58]} 15. O-O-O {[%emt 0:02:23]} Rfc8 {[%emt 0:02:04]} 16. h6 {[%emt 0:11:04]} Bh8 {[%emt 0:01:49]} 17. Nge2 {[%emt 0:17:04]} Nxe2+ {[%emt 0:06:10]} 18. Qxe2 {[%emt 0:00:31]} Qa5 {[%emt 0:03:24]} 19. Qb5 {[%emt 0:03:14]} Qd8 {[%emt 0:09:41]} 20. Qxb7 {[%emt 0:04:06]} Rab8 {[%emt 0:06:37]} 21. Qa6 {[%emt 0:00:20]} Qc7 {[%emt 0:01:22]} 22. Rxd6 {[%emt 0:03:54]} Rxb2 {[%emt 0:01:04]} 23. Rc6 {[%emt 0:04:56]} Qxc6 {[%emt 0:03:29]} 24. Qxc6 {[%emt 0:00:09]} Rxc2+ {[%emt 0:00:07]} 25. Kxc2 {[%emt 0:00:07]} Rxc6 {[%emt 0:00:02]} 26. Bxa7 {[%emt 0:01:07]} f6 {[%emt 0:02:50]} 27. Be3 {[%emt 0:00:51]} Bxa2 {[%emt 0:01:16]} 28. Rd1 {[%emt 0:00:25]} Rc8 {[%emt 0:00:21]} 29. Rd7 {[%emt 0:00:26]} Be6 {[%emt 0:00:54]} 30. Re7 {[%emt 0:00:30]} Bf7 {[%emt 0:00:03]} 31. Rb7 {[%emt 0:00:31]} Kf8 {[%emt 0:01:35]} 32. Kb2 {[%emt 0:00:12]} Rd8 {[%emt 0:00:47]} 33. Nb5 {[%emt 0:00:22]} Rd3 {[%emt 0:00:00]} 1-0

[Event "32nd GER-ch Seniors-65 2020"]
[Site "Magdeburg"]
[Date "2020.08.16"]
[Round "3.6"]
[White "Kannenberg, Karl-Heinz"]
[Black "Andersen, Knut"]
[Result "0-1"]
[ECO "B23"]
[WhiteElo "2128"]
[BlackElo "2047"]
[Annotator "ChessBase"]
[PlyCount "68"]
[EventDate "2020.08.14"]
[EventType "swiss"]
[EventCountry "GER"]
[SourceTitle "playchess.com"]
[Source "ChessBase"]
[SourceQuality "1"]
[TimeControl "40/5400+30:1800+30"]

1. e4 {[%emt 0:00:00]} c5 {[%emt 0:00:00]} 2. Nc3 {[%emt 0:00:00]} Nc6 {[%emt 0:00:00]} 3. f4 {[%emt 0:00:00]} g6 {[%emt 0:00:11]} 4. Nf3 {[%emt 0:00:30]} Bg7 {[%emt 0:00:07]} 5. Bb5 {[%emt 0:00:18]} Nd4 {[%emt 0:00:37]} 6. O-O {[%emt 0:00:42]} a6 {[%emt 0:00:05]} 7. Bd3 {[%emt 0:00:33]} d6 {[%emt 0:05:01]} 8. Nxd4 {[%emt 0:00:40]} cxd4 {[%emt 0:00:11]} 9. Ne2 {[%emt 0:00:43]} Nf6 {[%emt 0:03:40]} 10. b3 {[%emt 0:01:02]} O-O {[%emt 0:01:59]} 11. Bb2 {[%emt 0:01:30]} e5 {[%emt 0:00:31]} 12. Ng3 {[%emt 0:02:05]} b5 {[%emt 0:03:27]} 13. Qe2 {[%emt 0:05:04]} Bb7 {[%emt 0:08:10]} 14. fxe5 {[%emt 0:07:07]} dxe5 {[%emt 0:00:17]} 15. Ba3 {[%emt 0:00:33]} Re8 {[%emt 0:00:45]} 16. c4 {[%emt 0:01:12]} dxc3 {[%emt 0:04:18]} 17. dxc3 {[%emt 0:00:07]} Qb6+ {[%emt 0:00:15]} 18. Kh1 {[%emt 0:00:43]} h5 {[%emt 0:07:24]} 19. Rf3 {[%emt 0:05:47]} h4 {[%emt 0:02:25]} 20. Nf1 {[%emt 0:00:16]} Bc8 {[%emt 0:02:30]} 21. Ne3 {[%emt 0:06:31]} Be6 {[%emt 0:07:21]} 22. Qf2 {[%emt 0:10:34]} Rad8 {[%emt 0:07:08]} 23. Rd1 {[%emt 0:07:06]} h3 {[%emt 0:16:04]} 24. g4 {[%emt 0:00:30]} Bh6 {[%emt 0:00:30]} 25. Bc1 Nxe4 26. Qf1 {[%emt 0:20:45]} Qc6 {[%emt 0:03:51]} 27. Kg1 {[%emt 0:18:04]} Nxc3 {[%emt 0:02:34]} 28. Rxh3 {[%emt 0:03:37]} Bxe3+ {[%emt 0:06:24]} 29. Bxe3 {[%emt 0:00:41]} Bxg4 {[%emt 0:01:11]} 30. Rd2 {[%emt 0:03:42]} Bxh3 {[%emt 0:02:03]} 31. Qxh3 {[%emt 0:00:11]} e4 {[%emt 0:02:13]} 32. Bf1 {[%emt 0:00:41]} Rxd2 {[%emt 0:01:45]} 33. Bxd2 {[%emt 0:00:11]} Nd1 {[%emt 0:00:53]} 34. Be2 {[%emt 0:01:31]} Qc5+ {[%emt 0:00:30]} 0-1

[Event "32nd GER-ch Seniors-65 2020"]
[Site "Magdeburg"]
[Date "2020.08.16"]
[Round "3.7"]
[White "Krueger, Erich"]
[Black "Cichy, Michael"]
[Result "1-0"]
[ECO "E21"]
[WhiteElo "2102"]
[BlackElo "2038"]
[Annotator "ChessBase"]
[PlyCount "53"]
[EventDate "2020.08.14"]
[EventType "swiss"]
[EventCountry "GER"]
[SourceTitle "playchess.com"]
[Source "ChessBase"]
[SourceQuality "1"]
[TimeControl "40/5400+30:1800+30"]

1. d4 {[%emt 0:00:00]} Nf6 {[%emt 0:00:00]} 2. c4 {[%emt 0:00:03]} e6 {[%emt 0:00:00]} 3. Nc3 {[%emt 0:00:05]} Bb4 {[%emt 0:00:25]} 4. Nf3 b6 {[%emt 0:01:13]} 5. Bg5 {[%emt 0:00:23]} h6 {[%emt 0:01:16]} 6. Bh4 {[%emt 0:00:14]} g5 {[%emt 0:00:49]} 7. Bg3 {[%emt 0:00:09]} Ne4 {[%emt 0:00:44]} 8. Qc2 {[%emt 0:00:33]} Bb7 {[%emt 0:01:05]} 9. e3 {[%emt 0:06:14]} f5 {[%emt 0:00:46]} 10. O-O-O Bxc3 {[%emt 0:04:07]} 11. bxc3 {[%emt 0:06:30]} d6 {[%emt 0:00:44]} 12. Nd2 {[%emt 0:11:57]} Nd7 {[%emt 0:02:53]} 13. Nxe4 {[%emt 0:02:43]} Bxe4 {[%emt 0:00:23]} 14. Qa4 {[%emt 0:00:22]} O-O {[%emt 0:17:21]} 15. f3 {[%emt 0:04:14]} Bb7 {[%emt 0:02:05]} 16. h4 {[%emt 0:05:21]} f4 {[%emt 0:18:11]} 17. Qc2 {[%emt 0:09:34]} Qe7 {[%emt 0:11:10]} 18. Bf2 {[%emt 0:13:56]} Rf7 19. Qg6+ {[%emt 0:00:30]} Rg7 20. Qxh6 {[%emt 0:00:30]} g4 {[%emt 0:30:34]} 21. fxg4 {[%emt 0:04:53]} Rxg4 {[%emt 0:00:36]} 22. exf4 {[%emt 0:00:51]} Nf6 {[%emt 0:02:10]} 23. Bd3 {[%emt 0:04:36]} Bxg2 {[%emt 0:01:07]} 24. Rhg1 {[%emt 0:24:03]} d5 {[%emt 0:01:54]} 25. Be3 {[%emt 0:00:00]} Bh3 {[%emt 0:00:00]} 26. Bf5 {[%emt 0:00:00]} Rxg1 {[%emt 0:01:44]} 27. Rxg1+ {[%emt 0:04:16]} 1-0

[Event "32nd GER-ch Seniors-65 2020"]
[Site "Magdeburg"]
[Date "2020.08.16"]
[Round "3.8"]
[White "Kierzek, Mira"]
[Black "Zimmermann, Rolf"]
[Result "1/2-1/2"]
[ECO "D02"]
[WhiteElo "2001"]
[BlackElo "2101"]
[Annotator "ChessBase"]
[PlyCount "49"]
[EventDate "2020.08.14"]
[EventType "swiss"]
[EventCountry "GER"]
[SourceTitle "playchess.com"]
[Source "ChessBase"]
[SourceQuality "1"]
[TimeControl "40/5400+30:1800+30"]

1. Nf3 {[%emt 0:00:00]} d5 {[%emt 0:00:17]} 2. d4 {[%emt 0:00:00]} Nf6 {[%emt 0:01:54]} 3. g3 {[%emt 0:01:55]} e6 {[%emt 0:01:40]} 4. Bg2 {[%emt 0:00:09]} c5 {[%emt 0:01:19]} 5. O-O {[%emt 0:00:19]} Nc6 {[%emt 0:00:34]} 6. a3 {[%emt 0:01:22]} Bd7 {[%emt 0:04:35]} 7. dxc5 {[%emt 0:05:19]} Bxc5 {[%emt 0:00:59]} 8. b4 {[%emt 0:00:16]} Bd6 {[%emt 0:11:03]} 9. c4 {[%emt 0:06:11]} Ne5 {[%emt 0:08:42]} 10. cxd5 {[%emt 0:02:12]} exd5 {[%emt 0:04:44]} 11. Bb2 {[%emt 0:06:07]} Qe7 {[%emt 0:05:05]} 12. Nbd2 {[%emt 0:12:14]} O-O {[%emt 0:02:19]} 13. Re1 {[%emt 0:11:44]} a5 {[%emt 0:15:35]} 14. bxa5 {[%emt 0:14:26]} Rxa5 {[%emt 0:00:30]} 15. e4 dxe4 16. Nxe4 {[%emt 0:10:29]} Nxf3+ {[%emt 0:24:10]} 17. Bxf3 {[%emt 0:02:29]} Nxe4 {[%emt 0:00:01]} 18. Bxe4 {[%emt 0:02:30]} Be6 {[%emt 0:00:06]} 19. Qd2 {[%emt 0:05:08]} Rfa8 {[%emt 0:01:18]} 20. Qd4 {[%emt 0:12:13]} Qf8 {[%emt 0:04:19]} 21. Bxb7 {[%emt 0:01:29]} R8a7 {[%emt 0:01:01]} 22. Be4 {[%emt 0:00:49]} Bxa3 {[%emt 0:01:24]} 23. Bxa3 {[%emt 0:00:18]} Rxa3 {[%emt 0:00:11]} 24. Rxa3 {[%emt 0:00:21]} Rxa3 {[%emt 0:00:17]} 25. Rd1 {[%emt 0:00:28]} 1/2-1/2

[Event "32nd GER-ch Seniors-65 2020"]
[Site "Magdeburg"]
[Date "2020.08.16"]
[Round "3.9"]
[White "Lorenz, Dietmar"]
[Black "Waagener, Ulrich"]
[Result "0-1"]
[ECO "A09"]
[WhiteElo "2001"]
[BlackElo "2081"]
[Annotator "NA"]
[PlyCount "108"]
[EventDate "2020.08.14"]
[EventType "swiss"]
[EventCountry "GER"]
[SourceTitle "playchess.com"]
[Source "ChessBase"]
[SourceQuality "1"]
[TimeControl "40/5400+30:1800+30"]

1. Nf3 {[%emt 0:00:00]} d5 {[%emt 0:00:30]} 2. c4 {[%emt 0:00:00]} dxc4 {[%emt 0:00:57]} 3. e3 {[%emt 0:00:00]} Be6 {[%emt 0:03:26]} 4. Na3 {[%emt 0:00:13]} Nf6 {[%emt 0:05:25]} 5. Nxc4 {[%emt 0:00:12]} g6 {[%emt 0:01:21]} 6. d4 {[%emt 0:00:28]} Bg7 {[%emt 0:01:12] A09: Réti Opening: 1 Nf3 d5 2 c4.} 7. Bd3 {[%emt 0:03:18]} O-O {[%emt 0:01:34]} 8. O-O {[%emt 0:03:31]} c5 {[%emt 0:05:58] [#]} 9. Qc2 $146 {[%emt 0:06:00]} ({Predecessor:} 9. dxc5 Nc6 10. Nce5 Nxe5 11. Nxe5 Qd5 12. Nf3 Qxc5 13. Nd4 {0-1 (23) Greet,A (2449)-Dearing,E (2411) England 2012}) 9... Nc6 {[%emt 0:02:10]} 10. Nce5 $1 {[%emt 0:04:16]} cxd4 {[%emt 0:01:47]} 11. Nxc6 {[%emt 0:00:24]} bxc6 {[%emt 0:00:15]} 12. Nxd4 {[%emt 0:01:05]} Bd5 {[%emt 0:02:27]} 13. Ne2 {[%emt 0:07:31]} Qd7 {[%emt 0:08:34]} 14. e4 {[%emt 0:07:08]} Be6 {[%emt 0:00:16]} 15. Rd1 {[%emt 0:01:25]} Qb7 {[%emt 0:04:35]} 16. Bd2 {[%emt 0:04:39]} (16. Nf4 $14) 16... Rfd8 {[%emt 0:05:47]} 17. Bc3 {[%emt 0:00:16]} Nh5 {[%emt 0:05:17]} 18. Bxg7 {[%emt 0:00:19]} Nxg7 {[%emt 0:00:11]} 19. b3 {[%emt 0:01:45]} Qb6 {[%emt 0:02:48]} 20. h3 {[%emt 0:03:37]} Rd7 {[%emt 0:00:52]} 21. Rac1 {[%emt 0:10:27]} Rad8 {[%emt 0:00:40]} 22. Kf1 {[%emt 0:00:30]} Nh5 {[%emt 0:00:30]} 23. Qc3 {[%emt 0:00:30]} Qc7 {[%emt 0:00:30]} 24. Bc2 {[%emt 0:00:30]} c5 {[%emt 0:00:30]} 25. Rxd7 {[%emt 0:00:30]} Rxd7 {[%emt 0:00:30]} 26. Rd1 {[%emt 0:00:30]} Rxd1+ {[%emt 0:00:30]} 27. Bxd1 {[%emt 0:14:36]} f6 {[%emt 0:16:34]} 28. Kg1 {[%emt 0:04:47]} Kf7 {[%emt 0:01:57]} 29. Qc2 {[%emt 0:02:07]} Qa5 {[%emt 0:02:11]} 30. Kf1 {[%emt 0:01:00]} Qb4 {[%emt 0:01:18]} 31. g4 {[%emt 0:01:35]} Ng7 {[%emt 0:00:26]} 32. Nf4 {[%emt 0:00:13]} g5 {[%emt 0:03:47]} 33. Nxe6 {[%emt 0:01:33]} Nxe6 {[%emt 0:00:11]} 34. e5 {[%emt 0:02:58]} Qd4 {[%emt 0:01:32]} 35. Qxh7+ {[%emt 0:02:27]} Ke8 {[%emt 0:00:11]} 36. Bf3 {[%emt 0:07:23]} (36. Bc2 $11) 36... Qa1+ {[%emt 0:02:24]} 37. Kg2 {[%emt 0:00:00]} Nf4+ {[%emt 0:02:52]} 38. Kh2 {[%emt 0:00:02]} Qxa2 {[%emt 0:03:30]} 39. Kg3 {[%emt 0:05:18] [#]} Qxb3 $2 {[%emt 0:02:18]} (39... Qa1 $1 $17 {[%cal Ra1g1]} 40. Qh8+ Kd7) 40. exf6 {[%emt 0:01:20]} exf6 {[%emt 0:01:10]} 41. Qh8+ {[%emt 0:31:03]} Ke7 {[%emt 0:30:30]} 42. Qh7+ {[%emt 0:01:05]} Qf7 {[%emt 0:01:41]} 43. Qe4+ {[%emt 0:00:18]} Kf8 {[%emt 0:00:15]} 44. h4 {[%emt 0:02:04]} Qc7 {[%emt 0:03:51]} 45. hxg5 {[%emt 0:01:30]} Ne6+ {[%emt 0:01:26]} 46. Kg2 {[%emt 0:00:43]} Nxg5 {[%emt 0:00:18]} 47. Qf5 {[%emt 0:00:00]} (47. Qa8+ $1 $11 Ke7 48. Qg8) 47... Ke7 {[%emt 0:00:00]} 48. Bd5 {[%emt 0:00:00]} Qe5 {[%emt 0:00:00]} 49. Qxe5+ {[%emt 0:00:00]} fxe5 {[%emt 0:00:00]} 50. Kg3 $15 {[%emt 0:00:00]} Kd6 {[%emt 0:00:00]} 51. f4 {[%emt 0:00:00]} exf4+ {[%emt 0:00:00]} 52. Kxf4 {[%emt 0:00:00]} Kxd5 {[%emt 0:00:00]} 53. Kxg5 {[%emt 0:00:00]} c4 {[%emt 0:00:00]} 54. Kf4 {[%emt 0:00:00]} Kd4 0-1

[Event "32nd GER-ch Seniors-65 2020"]
[Site "Magdeburg"]
[Date "2020.08.16"]
[Round "3.10"]
[White "Pfitzer, Norbert"]
[Black "Braeunlin, Herbert"]
[Result "1-0"]
[ECO "A41"]
[WhiteElo "2068"]
[BlackElo "2031"]
[Annotator "ChessBase"]
[PlyCount "39"]
[EventDate "2020.08.14"]
[EventType "swiss"]
[EventCountry "GER"]
[SourceTitle "playchess.com"]
[Source "ChessBase"]
[SourceQuality "1"]
[TimeControl "40/5400+30:1800+30"]

1. Nf3 {[%emt 0:00:00]} d6 {[%emt 0:02:17]} 2. d4 {[%emt 0:00:00]} Bg4 {[%emt 0:03:29]} 3. Nbd2 {[%emt 0:02:40]} c6 {[%emt 0:00:38]} 4. h3 {[%emt 0:00:22]} Bh5 {[%emt 0:00:43]} 5. g4 {[%emt 0:03:46]} Bg6 {[%emt 0:00:03]} 6. Nh4 {[%emt 0:00:29]} e5 {[%emt 0:00:52]} 7. Nxg6 {[%emt 0:00:05]} hxg6 {[%emt 0:00:08]} 8. dxe5 {[%emt 0:00:32]} dxe5 {[%emt 0:00:02]} 9. Bg2 {[%emt 0:00:24]} f5 {[%emt 0:09:20]} 10. Nf3 {[%emt 0:03:28]} Nd7 {[%emt 0:15:50]} 11. c3 {[%emt 0:03:12]} Bc5 {[%emt 0:06:32]} 12. Qb3 {[%emt 0:01:53]} Ngf6 {[%emt 0:14:08]} 13. Ng5 {[%emt 0:13:52]} Qe7 {[%emt 0:00:19]} 14. Qxb7 {[%emt 0:01:45]} O-O {[%emt 0:00:08]} 15. Qxc6 {[%emt 0:02:49]} Rae8 {[%emt 0:00:07]} 16. gxf5 {[%emt 0:03:15]} gxf5 {[%emt 0:02:16]} 17. b4 {[%emt 0:02:59]} Bb6 {[%emt 0:05:17]} 18. Qc4+ {[%emt 0:00:28]} Kh8 {[%emt 0:00:02]} 19. Qh4+ {[%emt 0:00:07]} Kg8 {[%emt 0:00:11]} 20. Bd5+ 1-0

[Event "32nd GER-ch Seniors-65 2020"]
[Site "Magdeburg"]
[Date "2020.08.16"]
[Round "3.11"]
[White "Postler, Reinhard"]
[Black "Harringer, Manfred"]
[Result "0-1"]
[ECO "C88"]
[WhiteElo "2238"]
[BlackElo "2008"]
[Annotator "ChessBase"]
[PlyCount "84"]
[EventDate "2020.08.14"]
[EventType "swiss"]
[EventCountry "GER"]
[SourceTitle "playchess.com"]
[Source "ChessBase"]
[SourceQuality "1"]
[TimeControl "40/5400+30:1800+30"]

1. e4 {[%emt 0:00:00]} e5 {[%emt 0:00:00]} 2. Nf3 {[%emt 0:00:00]} Nc6 {[%emt 0:00:00]} 3. Bb5 {[%emt 0:00:00]} a6 {[%emt 0:00:01]} 4. Ba4 {[%emt 0:00:00]} Nf6 {[%emt 0:00:10]} 5. O-O {[%emt 0:00:01]} Be7 {[%emt 0:00:16]} 6. Re1 {[%emt 0:00:22]} b5 {[%emt 0:00:19]} 7. Bb3 {[%emt 0:00:02]} O-O {[%emt 0:02:10]} 8. a4 {[%emt 0:00:33]} Bb7 {[%emt 0:04:00]} 9. d3 {[%emt 0:01:45]} d6 {[%emt 0:01:09]} 10. Bd2 {[%emt 0:01:47]} Nb8 {[%emt 0:07:07]} 11. axb5 {[%emt 0:07:36]} axb5 {[%emt 0:00:14]} 12. Rxa8 {[%emt 0:01:23]} Bxa8 {[%emt 0:00:05]} 13. Nc3 {[%emt 0:01:42]} Bc6 {[%emt 0:12:31]} 14. d4 {[%emt 0:01:12]} b4 {[%emt 0:07:24]} 15. Nd5 {[%emt 0:00:20]} Bxd5 {[%emt 0:00:41]} 16. exd5 {[%emt 0:00:42]} exd4 {[%emt 0:11:40]} 17. Nxd4 {[%emt 0:00:28]} Nfd7 {[%emt 0:00:12]} 18. Bxb4 {[%emt 0:03:05]} Ne5 {[%emt 0:04:08]} 19. g3 {[%emt 0:14:28]} Bf6 {[%emt 0:00:44]} 20. Bc3 {[%emt 0:05:15]} Qc8 {[%emt 0:05:22]} 21. f4 {[%emt 0:04:45]} Ned7 {[%emt 0:00:30]} 22. Nc6 {[%emt 0:00:30]} Qb7 {[%emt 0:00:30]} 23. Bxf6 {[%emt 0:00:30]} Nxf6 {[%emt 0:00:30]} 24. Qf3 {[%emt 0:00:30]} Nbd7 {[%emt 0:00:30]} 25. Kg2 {[%emt 0:00:30]} Nc5 {[%emt 0:00:30]} 26. Re3 {[%emt 0:00:30]} h6 {[%emt 0:00:30]} 27. g4 {[%emt 0:00:30]} Re8 {[%emt 0:00:30]} 28. g5 {[%emt 0:00:30]} Rxe3 {[%emt 0:00:30]} 29. Qxe3 {[%emt 0:00:30]} hxg5 {[%emt 0:00:30]} 30. fxg5 {[%emt 0:19:57]} Nfe4 {[%emt 0:17:00]} 31. h4 {[%emt 0:01:45]} g6 {[%emt 0:08:13]} 32. h5 {[%emt 0:03:47]} gxh5 {[%emt 0:06:31]} 33. Qf4 {[%emt 0:01:24]} Qb5 {[%emt 0:02:29]} 34. Nd4 {[%emt 0:02:41]} Qa5 {[%emt 0:00:50]} 35. c3 {[%emt 0:01:53]} Qa1 {[%emt 0:00:11]} 36. Bc4 {[%emt 0:02:56]} Qxb2+ {[%emt 0:00:22]} 37. Be2 {[%emt 0:00:09]} Nxc3 {[%emt 0:02:24]} 38. g6 {[%emt 0:00:34]} fxg6 {[%emt 0:01:16]} 39. Qf6 {[%emt 0:00:04]} Nxe2 {[%emt 0:02:26]} 40. Qxg6+ {[%emt 0:00:13]} Kh8 {[%emt 0:00:10]} 41. Qh6+ {[%emt 0:33:39]} Kg8 {[%emt 0:30:44]} 42. Qg6+ {[%emt 0:00:04]} Kh8 0-1

[Event "32nd GER-ch Seniors-65 2020"]
[Site "Magdeburg"]
[Date "2020.08.17"]
[Round "4.1"]
[White "Waagener, Ulrich"]
[Black "Khanukov, Boris"]
[Result "1/2-1/2"]
[ECO "C45"]
[WhiteElo "2081"]
[BlackElo "2291"]
[Annotator "ChessBase"]
[PlyCount "108"]
[EventDate "2020.08.14"]
[EventType "swiss"]
[EventCountry "GER"]
[SourceTitle "playchess.com"]
[Source "ChessBase"]
[SourceQuality "1"]
[TimeControl "40/5400+30:1800+30"]

1. e4 {[%emt 0:00:00]} e5 {[%emt 0:00:00]} 2. Nf3 {[%emt 0:00:12]} Nc6 {[%emt 0:00:07]} 3. d4 {[%emt 0:00:54]} exd4 {[%emt 0:00:23]} 4. Nxd4 {[%emt 0:00:10]} Nf6 {[%emt 0:01:03]} 5. Nxc6 {[%emt 0:01:27]} bxc6 {[%emt 0:00:10]} 6. Nd2 {[%emt 0:02:13]} d5 {[%emt 0:04:39]} 7. exd5 {[%emt 0:03:12]} cxd5 {[%emt 0:00:11]} 8. Bb5+ {[%emt 0:00:23]} Bd7 {[%emt 0:00:16]} 9. Bxd7+ {[%emt 0:00:56]} Qxd7 {[%emt 0:00:13]} 10. O-O {[%emt 0:02:19]} Be7 {[%emt 0:00:21]} 11. Nf3 {[%emt 0:05:27]} O-O {[%emt 0:01:05]} 12. b3 {[%emt 0:04:21]} Ne4 {[%emt 0:19:31]} 13. Bb2 {[%emt 0:03:41]} Bf6 {[%emt 0:01:51]} 14. Bxf6 {[%emt 0:02:01]} Nxf6 {[%emt 0:00:05]} 15. Qd4 {[%emt 0:05:49]} Qd6 {[%emt 0:00:58]} 16. Rfe1 {[%emt 0:01:32]} c5 {[%emt 0:01:11]} 17. Qd3 {[%emt 0:04:19]} Rfe8 {[%emt 0:02:33]} 18. g3 {[%emt 0:01:07]} h6 {[%emt 0:01:37]} 19. Rad1 {[%emt 0:07:24]} Rad8 {[%emt 0:06:44]} 20. Kg2 {[%emt 0:09:44]} Qc7 {[%emt 0:09:13]} 21. Qb5 {[%emt 0:05:15]} Qb6 {[%emt 0:01:03]} 22. Rxe8+ {[%emt 0:02:30]} Rxe8 {[%emt 0:00:15]} 23. Qxb6 {[%emt 0:00:18]} axb6 {[%emt 0:00:03]} 24. a4 {[%emt 0:00:36]} Kf8 {[%emt 0:02:57]} 25. Nd2 {[%emt 0:02:26]} Ke7 {[%emt 0:03:21]} 26. Kf3 {[%emt 0:01:05]} Kd6 {[%emt 0:03:07]} 27. Nc4+ {[%emt 0:01:20]} Kc6 {[%emt 0:00:17]} 28. Ne3 {[%emt 0:00:41]} g6 {[%emt 0:00:31]} 29. h4 {[%emt 0:01:58]} d4 {[%emt 0:03:12]} 30. Nc4 {[%emt 0:02:09]} Nd5 {[%emt 0:00:26]} 31. Rh1 {[%emt 0:02:23]} Nb4 {[%emt 0:04:44]} 32. Na3 {[%emt 0:08:27]} h5 {[%emt 0:01:16]} 33. Rd1 {[%emt 0:01:39]} Re6 {[%emt 0:01:20]} 34. Rc1 {[%emt 0:01:00]} Na2 {[%emt 0:00:33]} 35. Rd1 {[%emt 0:03:26]} Nc3 {[%emt 0:00:12]} 36. Rd2 {[%emt 0:01:03]} Re1 {[%emt 0:02:23]} 37. Nc4 {[%emt 0:00:57]} f6 {[%emt 0:02:14]} 38. Nb2 {[%emt 0:02:24]} g5 {[%emt 0:02:57]} 39. hxg5 {[%emt 0:03:52]} fxg5 {[%emt 0:00:06]} 40. Nd3 {[%emt 0:02:28]} Re6 {[%emt 0:04:25]} 41. Kg2 {[%emt 0:31:29]} g4 {[%emt 0:36:30]} 42. f4 {[%emt 0:02:07]} gxf3+ {[%emt 0:00:33]} 43. Kxf3 {[%emt 0:00:11]} Re3+ {[%emt 0:00:58]} 44. Kf4 {[%emt 0:02:20]} Ne2+ {[%emt 0:00:53]} 45. Kg5 {[%emt 0:00:14]} Nxg3 {[%emt 0:00:30]} 46. Rg2 {[%emt 0:01:51]} Kd5 {[%emt 0:05:14]} 47. Kh4 {[%emt 0:01:12]} Ne4 {[%emt 0:08:13]} 48. Rg6 {[%emt 0:00:00]} c4 {[%emt 0:00:00]} 49. bxc4+ {[%emt 0:00:00]} Kxc4 {[%emt 0:00:00]} 50. Rxb6 {[%emt 0:00:00]} Re2 {[%emt 0:00:00]} 51. Rc6+ {[%emt 0:00:00]} Kd5 {[%emt 0:00:00]} 52. Nf4+ {[%emt 0:00:00]} Kxc6 {[%emt 0:00:00]} 53. Nxe2 {[%emt 0:00:00]} Kc5 {[%emt 0:00:00]} 54. Kxh5 {[%emt 0:00:00]} Kd5 1/2-1/2